fUSD/lending_fUSD_20251201
["ID","MTS","AMOUNT","RATE_DAILY","PERIOD"]
[395255366,1764571851379,-12614.97504208,0.00016077,2]
[395255367,1764571851389,-150.0,0.0001608,2]
[395255368,1764571851398,-150.0,0.00016082,2]
[395255369,1764571851408,-150.0,0.00016087,2]
[395255370,1764571851417,-150.0,0.00016092,2]
[395255371,1764571851427,-163.70980013,0.00016094,2]
[395255372,1764571851436,-228.29835367,0.00016094,2]
[395255373,1764571851445,-150.0,0.00016095,2]
[395255374,1764571851454,-150.0,0.000161,2]
[395255375,1764571851464,-150.0,0.00016104,2]
[395255376,1764571851474,-484.4802032,0.00016106,2]
[395255377,1764571851483,-150.0,0.0001611,2]
[395255378,1764571851493,-439.0,0.0001611,2]
[395255379,1764571851502,-1888.40824377,0.0001611,2]
[395255380,1764571851512,-163.70980013,0.00016111,2]
[395255381,1764571851521,-228.29835367,0.00016111,2]
[395255382,1764571851533,-150.0,0.00016111,2]
[395255383,1764571851542,-150.0,0.00016112,2]
[395255384,1764571851552,-9999.99,0.00016116,2]
[395255385,1764571851562,-150.0,0.00016122,2]
[395255386,1764571851571,-150.0,0.00016123,2]
[395255387,1764571851581,-150.0,0.00016126,2]
[395255388,1764571851590,-163.70980013,0.00016128,2]
[395255389,1764571851600,-228.29835367,0.00016128,2]
[395255390,1764571851610,-150.0,0.00016137,2]
[395255391,1764571851619,-150.0,0.00016137,2]
[395255392,1764571851628,-150.0,0.00016137,2]
[395255393,1764571851638,-163.70980013,0.00016146,2]
[395255394,1764571851647,-228.29835367,0.00016146,2]
[395255395,1764571851657,-151.0,0.00016146,2]
[395255396,1764571851667,-500.0,0.00016148,2]
[395255397,1764571851676,-500.0,0.00016148,2]
[395255398,1764571851686,-500.0,0.00016148,2]
[395255399,1764571851696,-500.3,0.00016148,2]
[395255400,1764571851705,-500.3,0.00016148,2]
[395255401,1764571851715,-500.0,0.00016148,2]
[395255402,1764571851724,-500.0,0.00016148,2]
[395255403,1764571851733,-500.0,0.00016148,2]
[395255404,1764571851743,-500.0,0.00016148,2]
[395255405,1764571851753,-500.0,0.00016148,2]
[395255406,1764571851763,-500.0,0.00016148,2]
[395255407,1764571851772,-150.0,0.00016148,2]
[395255408,1764571851782,-151.0,0.00016149,2]
[395255409,1764571851792,-152.370624,0.00016149,2]
[395255410,1764571851802,-151.0,0.00016149,2]
[395255411,1764571851812,-157.429867,0.00016149,2]
[395255412,1764571851821,-151.0,0.00016149,2]
[395255413,1764571851831,-2871.530352,0.00016149,2]
[395255414,1764571851841,-2871.530352,0.00016149,2]
[395255415,1764571851851,-2871.530352,0.00016149,2]
[395255416,1764571851860,-2871.530352,0.00016149,2]
[395255417,1764571851870,-1626.387649,0.00016149,2]
[395255418,1764571851879,-1626.387649,0.00016149,2]
[395255419,1764571851888,-1626.387649,0.00016149,2]
[395255420,1764571851898,-1626.387649,0.00016149,2]
[395255421,1764571851907,-151.436372,0.00016149,2]
[395255422,1764571851916,-179.513814,0.00016149,2]
[395255423,1764571851926,-179.513814,0.00016149,2]
[395255424,1764571852024,-179.513814,0.00016149,2]
[395255425,1764571852071,-159.648554,0.00016149,2]
[395255426,1764571852080,-179.513814,0.00016149,2]
[395255427,1764571852091,-151.0,0.00016149,2]
[395255428,1764571852101,-151.0,0.00016149,2]
[395255429,1764571852110,-151.0,0.00016149,2]
[395255430,1764571852120,-151.0,0.00016149,2]
[395255431,1764571852134,-151.0,0.00016149,2]
[395255432,1764571852156,-620.0,0.00016149,2]
[395255433,1764571852169,-578.20924308,0.00016149,2]
[395255434,1764571852179,-160.0,0.00016149,2]
[395255435,1764571852188,-10000.0,0.00016149,2]
[395255436,1764571852198,-8000.0,0.00016149,2]
[395255437,1764571852208,-6485.44053371,0.00016149,2]
[395255438,1764571852219,-10000.0,0.00016149,2]
[395255439,1764571852229,-8000.0,0.00016149,2]
[395255440,1764571852238,-3300.0,0.00016149,2]
[395255441,1764571852248,-10000.0,0.00016149,2]
[395255442,1764571852258,-8000.0,0.00016149,2]
[395255443,1764571852268,-10000.0,0.00016149,2]
[395255444,1764571852278,-8000.0,0.00016149,2]
[395255445,1764571852288,-10000.0,0.00016149,2]
[395255446,1764571852298,-10000.0,0.00016149,2]
[395255447,1764571852308,-8000.0,0.00016149,2]
[395255448,1764571852318,-10000.0,0.00016149,2]
[395255449,1764571852329,-514.84070869,0.00016149,2]
[395255450,1764571852339,-8000.0,0.00016149,2]
[395255451,1764571852349,-10000.0,0.00016149,2]
[395255452,1764571852359,-8000.0,0.00016149,2]
[395255453,1764571852369,-8000.0,0.00016149,2]
[395255454,1764571852379,-10000.0,0.00016149,2]
[395255455,1764571852388,-151.0,0.00016149,2]
[395255456,1764571852398,-10000.0,0.00016149,2]
[395255457,1764571852408,-8000.0,0.00016149,2]
[395255458,1764571852418,-151.0,0.00016149,2]
[395255459,1764571852428,-10000.0,0.00016149,2]
[395255460,1764571852438,-8000.0,0.00016149,2]
[395255461,1764571852447,-10000.0,0.00016149,2]
[395255462,1764571852456,-8000.0,0.00016149,2]
[395255463,1764571852466,-1328.07662834,0.00016149,2]
[395255464,1764571852475,-10000.0,0.00016149,2]
[395255465,1764571852484,-1000.0,0.00016149,2]
[395255466,1764571852494,-8000.0,0.00016149,2]
[395255467,1764571852503,-10000.0,0.00016149,2]
[395255468,1764571852513,-1000.0,0.00016149,2]
[395255469,1764571852522,-2148.05773878,0.00016149,2]
[395255470,1764571852532,-1000.0,0.00016149,2]
[395255471,1764571852542,-1000.0,0.00016149,2]
[395255472,1764571852551,-187.78006525,0.00016149,2]
[395255473,1764571852560,-1000.0,0.00016149,2]
[395255474,1764571852570,-1000.0,0.00016149,2]
[395255475,1764571852580,-151.0,0.00016149,2]
[395255476,1764571852589,-1000.0,0.00016149,2]
[395255477,1764571852598,-762.94247186,0.00016149,2]
[395255478,1764571852608,-250.0,0.00016149,2]
[395255479,1764571852617,-250.0,0.00016149,2]
[395255480,1764571852626,-1000.0,0.00016149,2]
[395255481,1764571852635,-187.78006525,0.00016149,2]
[395255482,1764571852645,-250.0,0.00016149,2]
[395255483,1764571852654,-1000.0,0.00016149,2]
[395255484,1764571852663,-250.0,0.00016149,2]
[395255485,1764571852673,-3000.0,0.00016149,2]
[395255486,1764571852682,-1000.0,0.00016149,2]
[395255487,1764571852691,-250.0,0.00016149,2]
[395255488,1764571852700,-3000.0,0.00016149,2]
[395255489,1764571852709,-1000.0,0.00016149,2]
[395255490,1764571852718,-250.0,0.00016149,2]
[395255491,1764571852728,-3000.0,0.00016149,2]
[395255492,1764571852737,-1000.0,0.00016149,2]
[395255493,1764571852746,-354.84418245,0.00016149,2]
[395255494,1764571852755,-500.0,0.00016149,2]
[395255495,1764571852764,-1000.0,0.00016149,2]
[395255496,1764571852775,-3000.0,0.00016149,2]
[395255497,1764571852784,-500.0,0.00016149,2]
[395255498,1764571852793,-3000.0,0.00016149,2]
[395255499,1764571852803,-1000.0,0.00016149,2]
[395255500,1764571852812,-500.0,0.00016149,2]
[395255501,1764571852822,-3000.0,0.00016149,2]
[395255502,1764571852831,-500.0,0.00016149,2]
[395255503,1764571852840,-1000.0,0.00016149,2]
[395255504,1764571852849,-3000.0,0.00016149,2]
[395255505,1764571852859,-2500.0,0.00016149,2]
[395255506,1764571852867,-632.91244134,0.00016149,2]
[395255507,1764571852877,-500.0,0.00016149,2]
[395255508,1764571852886,-1000.0,0.00016149,2]
[395255509,1764571852896,-2500.0,0.00016149,2]
[395255510,1764571852906,-1000.0,0.00016149,2]
[395255511,1764571852916,-500.0,0.00016149,2]
[395255512,1764571852925,-2500.0,0.00016149,2]
[395255513,1764571852934,-1000.0,0.00016149,2]
[395255514,1764571852943,-2500.0,0.00016149,2]
[395255515,1764571852953,-500.0,0.00016149,2]
[395255516,1764571852962,-1000.0,0.00016149,2]
[395255517,1764571852971,-2500.0,0.00016149,2]
[395255518,1764571852982,-500.0,0.00016149,2]
[395255519,1764571852991,-1000.0,0.00016149,2]
[395255520,1764571853000,-2500.0,0.00016149,2]
[395255521,1764571853009,-500.0,0.00016149,2]
[395255522,1764571853019,-1000.0,0.00016149,2]
[395255523,1764571853028,-2500.0,0.00016149,2]
[395255524,1764571853038,-500.0,0.00016149,2]
[395255525,1764571853051,-1000.0,0.00016149,2]
[395255526,1764571853061,-2500.0,0.00016149,2]
[395255527,1764571853070,-500.0,0.00016149,2]
[395255528,1764571853080,-1000.0,0.00016149,2]
[395255529,1764571853090,-2500.0,0.00016149,2]
[395255530,1764571853101,-500.0,0.00016149,2]
[395255531,1764571853111,-1000.0,0.00016149,2]
[395255532,1764571853121,-248.71531821,0.00016149,2]
[395255533,1764571853131,-2500.0,0.00016149,2]
[395255534,1764571853142,-500.0,0.00016149,2]
[395255535,1764571853152,-1000.0,0.00016149,2]
[395255536,1764571853162,-2500.0,0.00016149,2]
[395255537,1764571853172,-500.0,0.00016149,2]
[395255538,1764571853183,-1000.0,0.00016149,2]
[395255539,1764571853193,-2500.0,0.00016149,2]
[395255540,1764571853204,-1000.0,0.00016149,2]
[395255541,1764571853214,-1000.0,0.00016149,2]
[395255542,1764571853224,-1500.0,0.00016149,2]
[395255543,1764571853234,-2500.0,0.00016149,2]
[395255544,1764571853244,-1000.0,0.00016149,2]
[395255545,1764571853255,-1500.0,0.00016149,2]
[395255546,1764571853265,-2500.0,0.00016149,2]
[395255547,1764571853275,-1000.0,0.00016149,2]
[395255548,1764571853285,-1500.0,0.00016149,2]
[395255549,1764571853295,-1000.0,0.00016149,2]
[395255550,1764571853305,-1500.0,0.00016149,2]
[395255551,1764571853315,-1000.0,0.00016149,2]
[395255552,1764571853324,-1500.0,0.00016149,2]
[395255553,1764571853334,-1000.0,0.00016149,2]
[395255554,1764571853345,-1500.0,0.00016149,2]
[395255555,1764571853355,-1000.0,0.00016149,2]
[395255556,1764571853365,-1500.0,0.00016149,2]
[395255557,1764571853375,-1500.0,0.00016149,2]
[395255558,1764571853385,-1500.0,0.00016149,2]
[395255559,1764571853396,-1500.0,0.00016149,2]
[395255560,1764571853406,-250.0,0.00016149,2]
[395255561,1764571853416,-1500.0,0.00016149,2]
[395255562,1764571853425,-254.91048614,0.00016149,2]
[395255563,1764571853435,-646.65982734,0.00016149,2]
[395255564,1764571853444,-559.7798745,0.00016149,2]
[395255565,1764571853454,-500.0,0.00016149,2]
[395255566,1764571853464,-151.0,0.00016149,2]
[395255567,1764571853474,-500.0,0.00016149,2]
[395255568,1764571853488,-500.0,0.00016149,2]
[395255569,1764571853497,-500.0,0.00016149,2]
[395255570,1764571853507,-500.0,0.00016149,2]
[395255571,1764571853516,-500.0,0.00016149,2]
[395255572,1764571853526,-500.0,0.00016149,2]
[395255573,1764571853537,-500.0,0.00016149,2]
[395255574,1764571853547,-1000.0,0.00016149,2]
[395255575,1764571853556,-1000.0,0.00016149,2]
[395255576,1764571853566,-500.0,0.00016149,2]
[395255577,1764571853575,-1000.0,0.00016149,2]
[395255578,1764571853585,-500.0,0.00016149,2]
[395255579,1764571853595,-1000.0,0.00016149,2]
[395255580,1764571853605,-500.0,0.00016149,2]
[395255581,1764571853615,-1000.0,0.00016149,2]
[395255582,1764571853624,-500.0,0.00016149,2]
[395255583,1764571853635,-1000.0,0.00016149,2]
[395255584,1764571853645,-500.0,0.00016149,2]
[395255585,1764571853655,-1000.0,0.00016149,2]
[395255586,1764571853664,-500.0,0.00016149,2]
[395255587,1764571853675,-1000.0,0.00016149,2]
[395255588,1764571853684,-1000.0,0.00016149,2]
[395255589,1764571853694,-1000.0,0.00016149,2]
[395255590,1764571853704,-1000.0,0.00016149,2]
[395255591,1764571853714,-1000.0,0.00016149,2]
[395255592,1764571853724,-1000.0,0.00016149,2]
[395255593,1764571853734,-300.0,0.00016149,2]
[395255594,1764571853743,-1000.0,0.00016149,2]
[395255595,1764571853753,-1000.0,0.00016149,2]
[395255596,1764571853762,-226.43577512,0.0001615,2]
[395255597,1764571853773,-2092.314224,0.0001615,2]
[395255598,1764571853783,-150.0,0.00016151,2]
[395255599,1764571853794,-150.0,0.00016152,2]
[395255600,1764571853805,-1575.36,0.00016156,2]
[395255601,1764571853816,-1460.77414547,0.00016162,2]
[395255602,1764571853827,-150.0,0.00016162,2]
[395255603,1764571853839,-163.70980013,0.00016163,2]
[395255604,1764571853849,-228.29835367,0.00016163,2]
[395255605,1764571853859,-150.0,0.00016163,2]
[395255606,1764571853870,-150.0,0.00016164,2]
[395255607,1764571853880,-151.0,0.00016165,2]
[395255608,1764571853890,-150.0,0.0001617,2]
[395255609,1764571853899,-150.0,0.00016174,2]
[395255610,1764571853909,-150.0,0.00016179,2]
[395255611,1764571853919,-163.70980013,0.0001618,2]
[395255612,1764571853929,-228.29835367,0.0001618,2]
[395255613,1764571853938,-150.0,0.00016182,2]
[395255614,1764571853948,-150.0,0.00016187,2]
[395255615,1764571853958,-150.0,0.00016192,2]
[395255616,1764571853968,-150.0,0.00016194,2]
[395255617,1764571853978,-163.70980013,0.00016197,2]
[395255618,1764571853989,-228.29835367,0.00016197,2]
[395255619,1764571853999,-500.0,0.00016203,2]
[395255620,1764571854008,-3300.0,0.00016204,2]
[395255621,1764571854018,-150.0,0.00016207,2]
[395255622,1764571854028,-150.0,0.00016211,2]
[395255623,1764571854038,-150.0,0.00016212,2]
[395255624,1764571854051,-163.70980013,0.00016214,2]
[395255625,1764571854063,-150.0,0.00016214,2]
[395255626,1764571854073,-228.29835367,0.00016214,2]
[395255627,1764571854083,-150.0,0.00016214,2]
[395255628,1764571854092,-150.0,0.00016219,2]
[395255629,1764571854103,-163.70980013,0.00016231,2]
[395255630,1764571854113,-228.29835367,0.00016231,2]
[395255631,1764571854122,-150.0,0.00016234,2]
[395255632,1764571854133,-150.0,0.00016236,2]
[395255633,1764571854143,-150.0,0.00016237,2]
[395255634,1764571854152,-150.0,0.00016241,2]
[395255635,1764571854162,-150.0,0.00016248,2]
[395255636,1764571854172,-163.70980013,0.00016249,2]
[395255637,1764571854182,-228.29835367,0.00016249,2]
[395255638,1764571854192,-150.0,0.00016258,2]
[395255639,1764571854202,-150.0,0.00016258,2]
[395255640,1764571854526,-3300.0,0.00016259,2]
[395255641,1764571854546,-150.0,0.00016262,2]
[395255642,1764571854566,-150.0,0.00016262,2]
[395255643,1764571854582,-150.0,0.00016266,2]
[395255644,1764571854593,-163.70980013,0.00016266,2]
[395255645,1764571854603,-228.29835367,0.00016266,2]
[395255646,1764571854613,-150.0,0.00016271,2]
[395255647,1764571854623,-150.0,0.00016274,2]
[395255648,1764571854632,-150.0,0.0001628,2]
[395255649,1764571854643,-163.70980013,0.00016283,2]
[395255650,1764571854652,-228.29835367,0.00016283,2]
[395255651,1764571854661,-150.0,0.00016287,2]
[395255652,1764571854673,-150.0,0.0001629,2]
[395255653,1764571854682,-163.70980013,0.000163,2]
[395255654,1764571854691,-228.29835367,0.000163,2]
[395255655,1764571854700,-150.0,0.00016301,2]
[395255656,1764571854709,-150.0,0.00016302,2]
[395255657,1764571854718,-150.0,0.00016307,2]
[395255658,1764571854728,-2063.6036669,0.00016309,2]
[395255659,1764571854737,-150.0,0.00016312,2]
[395255660,1764571854747,-3300.0,0.00016314,2]
[395255661,1764571854757,-163.70980013,0.00016317,2]
[395255662,1764571854768,-228.29835367,0.00016317,2]
[395255663,1764571854778,-150.0,0.00016317,2]
[395255664,1764571854788,-150.0,0.00016318,2]
[395255665,1764571854798,-150.0,0.00016322,2]
[395255666,1764571854807,-150.0,0.00016324,2]
[395255667,1764571854817,-150.0,0.00016329,2]
[395255668,1764571854826,-150.0,0.00016331,2]
[395255669,1764571854835,-163.70980013,0.00016334,2]
[395255670,1764571854846,-228.29835367,0.00016334,2]
[395255671,1764571854855,-150.0,0.00016337,2]
[395255672,1764571854864,-1931.13207761,0.00016339,2]
[395255673,1764571854874,-150.0,0.00016346,2]
[395255674,1764571854883,-150.0,0.00016347,2]
[395255675,1764571854892,-163.70980013,0.00016351,2]
[395255676,1764571854902,-228.29835367,0.00016351,2]
[395255677,1764571854912,-604.07312412,0.00016352,2]
[395255678,1764571854921,-150.0,0.0001636,2]
[395255679,1764571854930,-151.0,0.00016361,2]
[395255680,1764571854940,-243.78787,0.00016361,2]
[395255681,1764571854949,-150.0,0.00016362,2]
[395255682,1764571854958,-152.505957,0.00016368,2]
[395255683,1764571854968,-151.0,0.00016368,2]
[395255684,1764571854977,-1916.265192,0.00016368,2]
[395255685,1764571854987,-1916.265192,0.00016368,2]
[395255686,1764571854996,-1916.265192,0.00016368,2]
[395255687,1764571855007,-1916.265192,0.00016368,2]
[395255688,1764571855017,-163.70980013,0.00016369,2]
[395255689,1764571855027,-150.0,0.00016369,2]
[395255690,1764571855037,-228.29835367,0.00016369,2]
[395255691,1764571855052,-150.0,0.00016369,2]
[395255692,1764571855063,-3300.0,0.00016369,2]
[395255693,1764571855073,-150.0,0.00016374,2]
[395255694,1764571855083,-150.0,0.00016384,2]
[395255695,1764571855093,-163.70980013,0.00016386,2]
[395255696,1764571855105,-228.29835367,0.00016386,2]
[395255697,1764571855114,-150.0,0.00016387,2]
[395255698,1764571855124,-150.0,0.0001639,2]
[395255699,1764571855136,-150.0,0.00016391,2]
[395255700,1764571855145,-150.0,0.00016395,2]
[395255701,1764571855155,-191.85688305,0.00016398,2]
[395255702,1764571855164,-707.34062351,0.00016398,2]
[395255703,1764571855173,-388.21665271,0.00016398,2]
[395255704,1764571855182,-938.4223103,0.00016398,2]
[395255705,1764571855192,-1055.00053518,0.00016398,2]
[395255706,1764571855202,-1000.0,0.00016398,2]
[395255707,1764571855211,-1000.0,0.00016398,2]
[395255708,1764571855221,-1000.0,0.00016398,2]
[395255709,1764571855230,-500.70186377,0.00016398,2]
[395255710,1764571855239,-500.45943647,0.00016398,2]
[395255711,1764571855249,-503.91137404,0.00016398,2]
[395255712,1764571855259,-1000.0,0.00016398,2]
[395255713,1764571855268,-1000.0,0.00016398,2]
[395255714,1764571855278,-1000.0,0.00016398,2]
[395255715,1764571855287,-160.17885855,0.00016398,2]
[395255716,1764571855297,-1000.0,0.00016398,2]
[395255717,1764571855306,-1000.0,0.00016398,2]
[395255718,1764571855316,-713.79343577,0.00016398,2]
[395255719,1764571855325,-505.70856743,0.00016398,2]
[395255720,1764571855334,-1000.0,0.00016398,2]
[395255721,1764571855343,-1003.03874905,0.00016398,2]
[395255722,1764571855352,-1000.0,0.00016398,2]
[395255723,1764571855362,-409.96658599,0.00016398,2]
[395255724,1764571855371,-1000.0,0.00016398,2]
[395255725,1764571855381,-1000.0,0.00016398,2]
[395255726,1764571855390,-1000.0,0.00016398,2]
[395255727,1764571855400,-1000.0,0.00016398,2]
[395255728,1764571855409,-453.79493009,0.00016398,2]
[395255729,1764571855419,-495.9241853,0.00016398,2]
[395255730,1764571855428,-654.41744648,0.00016398,2]
[395255731,1764571855437,-217.00327303,0.00016398,2]
[395255732,1764571855446,-465.96204167,0.00016401,2]
[395255733,1764571855456,-150.0,0.00016402,2]
[395255734,1764571855465,-163.70980013,0.00016403,2]
[395255735,1764571855474,-228.29835367,0.00016403,2]
[395255736,1764571855484,-150.0,0.00016412,2]
[395255737,1764571855493,-150.0,0.00016413,2]
[395255738,1764571855502,-150.0,0.0001642,2]
[395255739,1764571855512,-163.70980013,0.0001642,2]
[395255740,1764571855521,-150.0,0.0001642,2]
[395255741,1764571855530,-150.0,0.0001642,2]
[395255742,1764571855540,-228.29835367,0.0001642,2]
[395255743,1764571855549,-150.0,0.0001642,2]
[395255744,1764571855559,-3300.0,0.00016424,2]
[395255745,1764571855568,-150.0,0.00016429,2]
[395255746,1764571855577,-1575.36,0.0001643,2]
[395255747,1764571855586,-150.0,0.00016435,2]
[395255748,1764571855595,-150.0,0.00016437,2]
[395255749,1764571855605,-163.70980013,0.00016437,2]
[395255750,1764571855614,-228.29835367,0.00016437,2]
[395255751,1764571855624,-500.0,0.00016438,2]
[395255752,1764571855633,-5454.01,0.00016438,2]
[395255753,1764571855642,-150.0,0.00016438,2]
[395255754,1764571855652,-151.0,0.00016438,2]
[395255755,1764571855662,-13051.53,0.00016438,2]
[395255756,1764571855673,-600.0,0.00016438,2]
[395255757,1764571855682,-163.95,0.0001644,2]
[395255758,1764571855691,-150.0,0.0001645,2]
[395255759,1764571855701,-163.70980013,0.00016454,2]
[395255760,1764571855711,-228.29835367,0.00016454,2]
[395255761,1764571855720,-150.0,0.00016457,2]
[395255762,1764571855730,-150.0,0.00016457,2]
[395255763,1764571855739,-150.0,0.00016462,2]
[395255764,1764571855748,-150.0,0.00016469,2]
[395255765,1764571855757,-163.70980013,0.00016472,2]
[395255766,1764571855767,-228.29835367,0.00016472,2]
[395255767,1764571855777,-150.0,0.00016472,2]
[395255768,1764571855786,-1169.06569467,0.00016475,2]
[395255769,1764571855796,-37661.41393697,0.00016478,2]
[395255770,1764571855806,-150.0,0.00016479,2]
[395255771,1764571855815,-3300.0,0.00016479,2]
[395255772,1764571855824,-150.0,0.0001648,2]
[395255773,1764571855834,-736.0,0.00016485,2]
[395255774,1764571855843,-150.0,0.00016485,2]
[395255775,1764571855853,-150.0,0.00016487,2]
[395255776,1764571855862,-12614.97504208,0.00016489,2]
[395255777,1764571855871,-163.70980013,0.00016489,2]
[395255778,1764571855881,-228.29835367,0.00016489,2]
[395255779,1764571855890,-1248.0,0.00016492,2]
[395255780,1764571855899,-150.0,0.00016493,2]
[395255781,1764571855909,-427.65493559,0.00016494,2]
[395255782,1764571855918,-150.0,0.00016501,2]
[395255783,1764571855928,-150.0,0.00016501,2]
[395255784,1764571855937,-484.4802032,0.00016503,2]
[395255785,1764571855947,-163.70980013,0.00016506,2]
[395255786,1764571855956,-228.29835367,0.00016506,2]
[395255787,1764571855966,-150.0,0.00016509,2]
[395255788,1764571855976,-150.0,0.00016512,2]
[395255789,1764571855985,-150.0,0.00016513,2]
[395255790,1764571855994,-163.70980013,0.00016523,2]
[395255791,1764571856004,-150.0,0.00016523,2]
[395255792,1764571856014,-228.29835367,0.00016523,2]
[395255793,1764571856023,-150.0,0.00016523,2]
[395255794,1764571856033,-1460.77414547,0.00016531,2]
[395255795,1764571856043,-150.0,0.00016533,2]
[395255796,1764571856052,-3300.0,0.00016534,2]
[395255797,1764571856065,-150.0,0.00016537,2]
[395255798,1764571856075,-150.0,0.00016539,2]
[395255799,1764571856084,-163.70980013,0.0001654,2]
[395255800,1764571856095,-228.29835367,0.0001654,2]
[395255801,1764571856104,-150.0,0.00016541,2]
[395255802,1764571856114,-150.0,0.00016543,2]
[395255803,1764571856124,-150.0,0.00016545,2]
[395255804,1764571856135,-150.0,0.00016548,2]
[395255805,1764571856145,-11342.96089445,0.00016549,2]
[395255806,1764571856154,-163.70980013,0.00016557,2]
[395255807,1764571856164,-228.29835367,0.00016557,2]
[395255808,1764571856173,-150.0,0.00016562,2]
[395255809,1764571856183,-150.0,0.00016562,2]
[395255810,1764571856192,-150.0,0.00016562,2]
[395255811,1764571856202,-150.0,0.00016567,2]
[395255812,1764571856212,-150.0,0.00016569,2]
[395255813,1764571856222,-150.0,0.00016569,2]
[395255814,1764571856231,-163.70980013,0.00016575,2]
[395255815,1764571856241,-228.29835367,0.00016575,2]
[395255816,1764571856251,-150.0,0.00016575,2]
[395255817,1764571856260,-500.0,0.00016575,2]
[395255818,1764571856270,-1248.0,0.00016578,2]
[395255819,1764571856280,-200.0,0.00016578,2]
[395255820,1764571856290,-500.0,0.00016578,2]
[395255821,1764571856299,-200.0,0.00016578,2]
[395255822,1764571856309,-150.0,0.00016587,2]
[395255823,1764571856318,-3300.0,0.00016589,2]
[395255824,1764571856328,-150.0,0.00016589,2]
[395255825,1764571856338,-163.70980013,0.00016592,2]
[395255826,1764571856347,-228.29835367,0.00016592,2]
[395255827,1764571856357,-150.0,0.00016596,2]
[395255828,1764571856367,-150.0,0.00016599,2]
[395255829,1764571856376,-150.0,0.00016603,2]
[395255830,1764571856386,-1248.0,0.00016603,2]
[395255831,1764571856395,-163.70980013,0.00016609,2]
[395255832,1764571856405,-228.29835367,0.00016609,2]
[395255833,1764571856414,-150.0,0.00016611,2]
[395255834,1764571856423,-150.0,0.00016612,2]
[395255835,1764571856432,-150.0,0.00016617,2]
[395255836,1764571856442,-150.0,0.00016624,2]
[395255837,1764571856452,-163.70980013,0.00016626,2]
[395255838,1764571856461,-228.29835367,0.00016626,2]
[395255839,1764571856470,-150.0,0.00016626,2]
[395255840,1764571856480,-1248.0,0.00016628,2]
[395255841,1764571856489,-150.0,0.00016629,2]
[395255842,1764571856498,-150.0,0.00016633,2]
[395255843,1764571856508,-150.0,0.00016637,2]
[395255844,1764571856518,-5129.0,0.0001664,2]
[395255845,1764571856527,-163.70980013,0.00016643,2]
[395255846,1764571856537,-228.29835367,0.00016643,2]
[395255847,1764571856546,-3300.0,0.00016644,2]
[395255848,1764571856556,-150.0,0.00016647,2]
[395255849,1764571856566,-150.0,0.00016652,2]
[395255850,1764571856575,-150.0,0.00016655,2]
[395255851,1764571856584,-150.0,0.00016658,2]
[395255852,1764571856594,-150.0,0.00016658,2]
[395255853,1764571856603,-5491.65035635,0.0001666,2]
[395255854,1764571856613,-151.0,0.0001666,2]
[395255855,1764571856624,-151.0,0.0001666,2]
[395255856,1764571856634,-151.0,0.0001666,2]
[395255857,1764571856643,-151.0,0.0001666,2]
[395255858,1764571856653,-151.0,0.0001666,2]
[395255859,1764571856663,-151.0,0.0001666,2]
[395255860,1764571856672,-151.0,0.0001666,2]
[395255861,1764571856682,-151.0,0.0001666,2]
[395255862,1764571856692,-376.767885,0.0001666,2]
[395255863,1764571856701,-376.767885,0.0001666,2]
[395255864,1764571856711,-376.767885,0.0001666,2]
[395255865,1764571856721,-376.767885,0.0001666,2]